bitfinex-derivatives/quotes_BTCF0:USTF0_20250609
["timestamp","ask_amount","ask_price","bid_price","bid_amount"]
[1749487969627,0.1853716,107830.0,107820.0,0.0319]
[1749487969827,0.1853887,107820.0,107810.0,0.26492656]
[1749487970027,0.77819941,107820.0,107810.0,0.25047706]
[1749487970221,2.28901536,107820.0,107810.0,0.34320273]
[1749487970421,2.33372131,107820.0,107810.0,0.34320273]
[1749487970622,2.33379717,107820.0,107810.0,0.31011213]
[1749487970832,2.33379717,107820.0,107810.0,0.12510623]
[1749487971015,2.33379717,107820.0,107810.0,0.09380623]
[1749487971221,2.33379717,107820.0,107810.0,0.27961473]
[1749487971427,2.33379717,107820.0,107810.0,0.09380623]
[1749487971622,2.35241936,107820.0,107810.0,0.27961603]
[1749487971929,2.35241936,107820.0,107810.0,0.27821603]
[1749487972225,2.445404,107820.0,107810.0,0.51022674]
[1749487972428,2.86280791,107820.0,107810.0,0.09320623]
[1749487972725,2.92598791,107820.0,107810.0,0.27821663]
[1749487972925,2.92598791,107820.0,107810.0,0.27861663]
[1749487973226,1.40736572,107820.0,107810.0,0.27861663]
[1749487973421,1.14355501,107820.0,107810.0,0.27861663]
[1749487973727,0.56614181,107820.0,107810.0,0.93612734]
[1749487973928,0.75153491,107820.0,107810.0,0.93612734]
[1749487974327,1.73187714,107830.0,107820.0,0.1853934]
[1749487974522,0.73691514,107830.0,107820.0,0.2500934]
[1749487974727,0.73695514,107830.0,107820.0,0.6108934]
[1749487974932,0.73695514,107830.0,107820.0,0.70364487]
[1749487975127,0.18551514,107830.0,107820.0,0.70364487]
[1749487975329,0.73733598,107830.0,107820.0,0.70364487]
[1749487975735,0.11067978,107830.0,107820.0,0.93565558]
[1749487975935,0.55387978,107830.0,107820.0,0.93565558]
[1749487976238,0.55379978,107830.0,107820.0,0.93565558]
[1749487976437,0.73917598,107830.0,107820.0,0.93565558]
[1749487976942,0.73929598,107830.0,107820.0,0.93565558]
[1749487977733,0.55391978,107830.0,107820.0,0.93565558]
[1749487977938,0.73929598,107830.0,107820.0,0.93565558]
[1749487978137,0.73026181,107830.0,107820.0,0.93565558]
[1749487979029,0.54488561,107830.0,107820.0,0.93565558]
[1749487979235,0.54499808,107830.0,107820.0,0.93565558]
[1749487979637,0.55123247,107830.0,107820.0,0.93565558]
[1749487979937,0.44271247,107830.0,107820.0,0.93565558]
[1749487981133,0.00011247,107830.0,107820.0,0.93565558]
[1749487982233,0.00011247,107830.0,107820.0,0.70364487]
[1749487982434,0.18548857,107830.0,107820.0,0.93565558]
[1749487982645,0.18548857,107830.0,107820.0,0.78948817]
[1749487982939,0.18548857,107830.0,107820.0,0.70404487]
[1749487983133,0.77829928,107830.0,107820.0,0.34324487]
[1749487983337,0.77829928,107830.0,107820.0,0.2322233]
[1749487983537,0.84449928,107830.0,107820.0,0.10534499]
[1749487983840,0.84449928,107830.0,107820.0,0.24481672]
[1749487984143,0.84449928,107830.0,107820.0,0.01328847]
[1749487984444,0.1853933,107820.0,107810.0,0.3574659]
[1749487984739,0.8027133,107820.0,107810.0,0.3574659]
[1749487985042,0.0326,107820.0,107810.0,0.81100877]
[1749487985336,0.7363533,107820.0,107810.0,1.07671948]
[1749487985738,0.7363533,107820.0,107810.0,1.09606278]
[1749487985937,0.7689533,107820.0,107810.0,0.41740877]
[1749487986131,0.7689533,107820.0,107810.0,0.40465757]
[1749487986439,1.36176401,107820.0,107810.0,0.27877287]
[1749487986742,1.39556401,107820.0,107810.0,0.09436237]
[1749487986936,1.39556401,107820.0,107810.0,0.27977287]
[1749487988043,1.14246758,107820.0,107810.0,0.27977287]
[1749487988239,1.11603657,107820.0,107810.0,0.27977287]
[1749487989644,0.31223657,107820.0,107810.0,0.27977287]
[1749487989849,0.75495657,107820.0,107810.0,0.27977287]
[1749487990148,0.36237937,107830.0,107820.0,0.1853933]
[1749487990349,0.94803937,107830.0,107820.0,0.2175933]
[1749487990842,0.79428857,107830.0,107820.0,0.31033617]
[1749487991042,0.75978857,107830.0,107820.0,0.34493617]
[1749487991540,0.24036857,107830.0,107820.0,0.34493617]
[1749487991745,0.79196857,107830.0,107820.0,0.34493617]
[1749487992646,0.79296857,107830.0,107820.0,0.34493617]
[1749487993048,0.82506857,107830.0,107820.0,0.34493617]
[1749487993353,1.41787928,107830.0,107820.0,0.09274287]
[1749487993540,0.02429247,107830.0,107820.0,0.51014688]
[1749487993739,0.02429247,107830.0,107820.0,1.02399018]
[1749487994045,7e-08,107830.0,107820.0,1.03089088]
[1749487994245,7e-08,107830.0,107820.0,1.17047813]
[1749487994548,7e-08,107830.0,107820.0,1.37153794]
[1749487994743,7e-08,107830.0,107820.0,1.31454037]
[1749487995048,9.112e-05,107830.0,107820.0,1.31454037]
[1749487995549,9.105e-05,107830.0,107820.0,1.31654037]
[1749487997647,2.04259494,107840.0,107830.0,0.1853761]
[1749487997843,2.04259494,107840.0,107830.0,1.10750124]
[1749487998041,2.21289888,107840.0,107830.0,1.10750124]
[1749487998241,2.21289888,107840.0,107830.0,0.82411427]
[1749487998450,2.02753998,107840.0,107830.0,1.05612498]
[1749487998651,2.02753998,107840.0,107830.0,0.94082968]
[1749487998844,2.02753998,107840.0,107830.0,1.08494881]
[1749487999245,2.21289888,107840.0,107830.0,1.08594881]
[1749487999549,2.02753998,107840.0,107830.0,1.08594881]
[1749487999739,2.02753998,107840.0,107830.0,0.82510002]
[1749488000945,2.21289878,107840.0,107830.0,0.82510002]
[1749488001754,2.47860949,107840.0,107830.0,0.79010002]
[1749488001949,2.28149878,107840.0,107830.0,0.79010002]
[1749488002143,2.28149878,107840.0,107830.0,0.79050002]
[1749488002752,2.28349878,107840.0,107830.0,0.78950002]
[1749488003449,2.87630949,107840.0,107830.0,0.27851897]
[1749488003646,2.87630949,107840.0,107830.0,0.36500669]
[1749488003851,2.87630949,107840.0,107830.0,0.4798938]
[1749488004156,2.87630949,107840.0,107830.0,0.17923665]
[1749488004355,2.87630949,107840.0,107830.0,0.36501275]
[1749488005856,2.05739878,107840.0,107830.0,0.36501275]
[1749488006062,1.47753998,107840.0,107830.0,0.98972346]
[1749488006250,1.92025998,107840.0,107830.0,1.08224881]
[1749488006953,1.92025998,107840.0,107830.0,1.28330862]
[1749488007154,1.92013998,107840.0,107830.0,1.28330862]
[1749488007559,1.92013998,107840.0,107830.0,1.05129791]
[1749488007760,1.89816643,107840.0,107830.0,1.28330862]
[1749488008256,1.88311191,107840.0,107830.0,1.08224881]
[1749488009061,1.88311191,107840.0,107830.0,1.28330862]
[1749488009759,2.06847081,107840.0,107830.0,1.05129791]
[1749488009957,1.88311191,107840.0,107830.0,0.8498381]
[1749488010156,1.88311191,107840.0,107830.0,1.08224881]
[1749488011163,2.06847081,107840.0,107830.0,1.08224881]
[1749488011360,2.06847081,107840.0,107830.0,1.08184881]
[1749488011755,2.06847081,107840.0,107830.0,1.08224881]
[1749488012155,1.88311191,107840.0,107830.0,1.08224881]
[1749488013161,1.88311191,107840.0,107830.0,0.93812968]
[1749488013362,1.88311191,107840.0,107830.0,1.08224881]
[1749488013557,1.88311191,107840.0,107830.0,0.70611897]
[1749488013752,2.06847081,107840.0,107830.0,0.93812968]
[1749488013957,1.88311191,107840.0,107830.0,0.93812968]
[1749488014269,2.05353081,107840.0,107830.0,1.08224881]
[1749488014956,2.05353081,107840.0,107830.0,0.8502381]
[1749488015358,2.05353081,107840.0,107830.0,0.39336607]
[1749488015359,2.11963081,107840.0,107830.0,0.39336607]
[1749488015662,2.08523081,107840.0,107830.0,0.39336607]
[1749488015872,2.08523081,107840.0,107830.0,0.81986607]
[1749488016159,3.58523081,107840.0,107830.0,0.70461897]
[1749488016365,3.58523081,107840.0,107830.0,0.34341897]
[1749488016663,3.61963081,107840.0,107830.0,0.45906607]
[1749488016859,3.61963081,107840.0,107830.0,0.27811897]
[1749488017054,3.61963081,107840.0,107830.0,0.39336607]
[1749488017259,3.61963081,107840.0,107830.0,0.39376607]
[1749488017658,3.98043081,107840.0,107830.0,0.20838997]
[1749488017866,3.98043081,107840.0,107830.0,0.20798997]
[1749488018172,4.21244152,107840.0,107830.0,0.20838997]
[1749488018360,4.21244152,107840.0,107830.0,0.20798997]
[1749488018667,4.21244152,107840.0,107830.0,0.20838997]
[1749488018867,4.21244152,107840.0,107830.0,0.20798997]
[1749488019171,4.21244152,107840.0,107830.0,0.17969388]
[1749488019469,4.21244152,107840.0,107830.0,0.09314287]
[1749488019969,4.21244152,107840.0,107830.0,0.09274287]
[1749488020264,4.21244152,107840.0,107830.0,0.09314287]
[1749488020470,4.97545752,107840.0,107830.0,0.09314287]
[1749488020964,4.97545752,107840.0,107830.0,0.09274287]
[1749488021169,3.47545752,107840.0,107830.0,0.09314287]
[1749488022269,3.22545752,107840.0,107830.0,0.09314287]
[1749488022865,3.37915752,107840.0,107830.0,0.09314287]
[1749488023071,0.1853927,107820.0,107810.0,0.0277295]
[1749488023269,1.32896341,107820.0,107810.0,0.0002195]
[1749488023569,1.74506341,107820.0,107810.0,0.09295376]
[1749488023763,1.74506341,107820.0,107810.0,0.09335376]
[1749488023969,1.74506341,107820.0,107810.0,0.10557617]
[1749488024160,1.74506341,107820.0,107810.0,0.09295376]
[1749488024367,0.0463538,107810.0,107790.0,0.08655101]
[1749488024563,1.45587437,107800.0,107790.0,0.09902372]
[1749488024773,1.53523487,107800.0,107790.0,0.09905686]
[1749488024977,1.53523487,107800.0,107790.0,0.19180833]
[1749488025164,1.53523487,107800.0,107790.0,0.19223434]
[1749488025365,1.31846621,107800.0,107790.0,0.17963581]
[1749488025680,1.54947692,107800.0,107790.0,0.19223944]
[1749488026274,0.63795692,107800.0,107790.0,0.19625062]
[1749488026469,0.86834521,107800.0,107790.0,0.38161388]
[1749488026776,0.86834521,107800.0,107790.0,0.36908011]
[1749488027261,1.22914521,107800.0,107790.0,0.38160445]
[1749488027574,0.78274521,107800.0,107790.0,0.38160445]
[1749488028075,1.22894521,107800.0,107790.0,0.38179094]
[1749488028267,1.22894521,107800.0,107790.0,0.38179151]
[1749488028577,1.22894521,107800.0,107790.0,0.09715147]
[1749488028867,1.46095592,107800.0,107790.0,0.10990141]
[1749488029074,1.46095592,107800.0,107790.0,0.09715147]
[1749488029276,1.22894521,107800.0,107790.0,0.10994394]
[1749488029778,1.22894521,107800.0,107790.0,0.12392174]
[1749488029963,1.22894521,107800.0,107790.0,0.12396948]
[1749488030162,1.22894521,107800.0,107790.0,0.09715147]
[1749488030368,1.46095592,107800.0,107790.0,0.10959183]
[1749488030573,1.41559632,107800.0,107790.0,0.12398471]
[1749488030880,0.90703682,107800.0,107790.0,0.12398939]
[1749488031079,0.64132611,107800.0,107790.0,0.30943369]
[1749488031376,0.82940763,107800.0,107790.0,0.34709577]
[1749488031673,0.82940763,107800.0,107790.0,0.35983789]
[1749488031877,0.82940763,107800.0,107790.0,0.35983375]
[1749488032183,0.82928763,107800.0,107790.0,0.39888327]
[1749488032372,1.19008763,107800.0,107790.0,0.22744484]
[1749488032674,1.22198763,107800.0,107790.0,0.34838914]
[1749488032868,1.45399834,107800.0,107790.0,0.16294484]
[1749488033072,1.45399834,107800.0,107790.0,0.12794484]
[1749488033269,1.45399834,107800.0,107790.0,0.12794254]
[1749488033571,1.45399834,107800.0,107790.0,0.12807265]
[1749488033877,1.45399834,107800.0,107790.0,0.12767275]
[1749488034079,1.45399834,107800.0,107790.0,0.10120807]
[1749488034375,1.09319834,107800.0,107790.0,0.12809915]
[1749488034575,0.86126763,107800.0,107790.0,0.12809915]
[1749488034774,1.09327834,107800.0,107790.0,0.12809915]
[1749488034976,1.09327834,107800.0,107790.0,0.11409547]
[1749488035172,1.09327834,107800.0,107790.0,0.11406053]
[1749488035367,1.45407834,107800.0,107790.0,0.12814107]
[1749488035564,1.45407834,107800.0,107790.0,0.11407519]
[1749488035865,1.45407834,107800.0,107790.0,0.10120807]
[1749488036068,1.45407834,107800.0,107790.0,0.1281762]
[1749488036278,1.45407834,107800.0,107790.0,0.11411042]
[1749488036471,1.45407834,107800.0,107790.0,0.12817621]
[1749488036772,1.45407834,107800.0,107790.0,0.11527538]
[1749488036975,1.45407834,107800.0,107790.0,0.11413222]
[1749488037167,1.31483563,107800.0,107790.0,0.1152755]
[1749488037366,1.54684634,107800.0,107790.0,0.10120807]
[1749488037579,1.54684634,107800.0,107790.0,0.11527559]
[1749488037876,1.31483563,107800.0,107790.0,0.03503901]
[1749488038082,1.31483563,107800.0,107790.0,0.03104055]
[1749488038083,1.54684634,107800.0,107790.0,0.03104055]
[1749488038271,0.1854442,107790.0,107780.0,0.02764894]
[1749488038471,0.86972884,107790.0,107780.0,0.02764894]
[1749488038673,0.86972884,107790.0,107780.0,0.13339653]
[1749488038973,0.86972884,107790.0,107780.0,0.31888806]
[1749488039169,0.65647652,107790.0,107780.0,0.30587902]
[1749488039375,0.65647652,107790.0,107780.0,0.13340595]
[1749488039676,0.65647652,107790.0,107780.0,0.13342187]
[1749488039982,0.88948723,107790.0,107780.0,0.13342187]
[1749488040382,0.88948723,107790.0,107780.0,0.13386343]
[1749488040676,0.88948723,107790.0,107780.0,0.13379519]
[1749488040883,0.88948723,107790.0,107780.0,0.13379442]
[1749488041076,0.88948723,107790.0,107780.0,0.13377757]
[1749488041273,0.88948723,107790.0,107780.0,0.12081762]
[1749488041482,1.22683652,107790.0,107780.0,0.30627892]
[1749488041783,0.83823874,107790.0,107780.0,0.12081762]
[1749488041967,1.44967033,107790.0,107780.0,0.10624863]
[1749488042273,1.25806106,107790.0,107780.0,0.27876892]
[1749488042476,1.49007177,107790.0,107780.0,0.09330762]
[1749488042672,1.49007177,107790.0,107780.0,0.13944479]
[1749488042872,1.64377177,107790.0,107780.0,0.12640762]
[1749488043073,1.64377177,107790.0,107780.0,0.09330762]
[1749488043275,1.64377177,107790.0,107780.0,0.10637168]
[1749488043571,0.1854786,107770.0,107760.0,0.1149948]
[1749488043883,0.1854958,107760.0,107750.0,0.90279885]
[1749488044176,0.3004558,107760.0,107750.0,0.88121559]
[1749488044374,0.3004558,107760.0,107750.0,0.96080435]
[1749488044569,0.3004558,107760.0,107750.0,0.98831435]
[1749488044770,0.3004558,107760.0,107750.0,1.00153122]
[1749488044971,0.2984558,107760.0,107750.0,0.94193615]
[1749488045175,0.2984558,107760.0,107750.0,1.18716381]
[1749488045380,0.11496,107760.0,107750.0,1.18715628]
[1749488045582,0.55633325,107760.0,107750.0,1.19108002]
[1749488045787,0.55633325,107760.0,107750.0,1.22012846]
[1749488045788,0.51733325,107760.0,107750.0,1.22012846]
[1749488045975,0.70282855,107760.0,107750.0,1.19125404]
[1749488046281,0.70282855,107760.0,107750.0,1.17818966]
[1749488046478,0.70282855,107760.0,107750.0,1.19131932]
[1749488046674,0.70282855,107760.0,107750.0,1.19134188]
[1749488046876,0.1854953,107760.0,107750.0,1.19134188]
[1749488047182,0.1151795,107770.0,107760.0,0.1854953]
[1749488047385,0.30028582,107770.0,107760.0,0.92809321]
[1749488047584,0.30028582,107770.0,107760.0,0.94113108]
[1749488047785,0.30028582,107770.0,107760.0,1.1781103]
[1749488047976,0.1854781,107770.0,107760.0,1.16500684]
[1749488048182,0.7562781,107770.0,107760.0,1.17811283]
[1749488048383,0.75634545,107770.0,107760.0,1.17811283]
[1749488048582,0.75634545,107770.0,107760.0,1.05071964]
[1749488048782,0.75634545,107770.0,107760.0,1.06371257]
[1749488048983,0.75634545,107770.0,107760.0,1.05071964]
[1749488049183,2.25634545,107770.0,107760.0,1.06371256]
[1749488049578,1.68554545,107770.0,107760.0,1.06371256]
[1749488049780,2.07030735,107770.0,107760.0,1.05071964]
[1749488050080,2.07030735,107770.0,107760.0,1.06370883]
[1749488050387,2.25578475,107770.0,107760.0,1.06487217]
[1749488050580,2.25578475,107770.0,107760.0,0.83169875]
[1749488050778,2.25578475,107770.0,107760.0,0.83286147]
[1749488051181,2.25578475,107770.0,107760.0,0.7900721]
[1749488051496,2.25530475,107770.0,107760.0,0.81714929]
[1749488051785,0.7552374,107770.0,107760.0,0.84578612]
[1749488051979,0.7552374,107770.0,107760.0,0.83278293]
[1749488052179,0.7552374,107770.0,107760.0,0.81870893]
[1749488052379,0.7552374,107770.0,107760.0,0.83275404]
[1749488052580,0.7552374,107770.0,107760.0,0.81870893]
[1749488052781,2.2552374,107770.0,107760.0,0.84570429]
[1749488052978,2.2162374,107770.0,107760.0,0.83275404]
[1749488053174,2.2162374,107770.0,107760.0,1.05071964]
[1749488053379,2.2162374,107770.0,107760.0,1.07771336]
[1749488053583,2.2162374,107770.0,107760.0,1.06366826]
[1749488053791,2.2162374,107770.0,107760.0,1.05071964]
[1749488054085,2.0704,107770.0,107760.0,1.06366573]
[1749488054286,2.0704,107770.0,107760.0,1.07771601]
[1749488054486,2.0704,107770.0,107760.0,1.07771487]
[1749488054982,2.07028,107770.0,107760.0,1.06476873]
[1749488055184,2.270675,107770.0,107760.0,1.07755605]
[1749488055383,2.270675,107770.0,107760.0,1.06476881]
[1749488055576,0.770675,107770.0,107760.0,1.05071964]
[1749488055779,0.200395,107770.0,107760.0,1.05071964]
[1749488055980,0.770475,107770.0,107760.0,1.06352674]
[1749488056189,0.585,107770.0,107760.0,1.1345146]
[1749488056686,2.085,107770.0,107760.0,1.13451187]
[1749488056887,2.08468,107770.0,107760.0,1.31256085]
[1749488057082,2.08468,107770.0,107760.0,1.31240972]
[1749488057281,2.08468,107770.0,107760.0,1.12400378]
[1749488057482,0.01492,107770.0,107760.0,1.52755734]
[1749488057780,0.45469894,107780.0,107770.0,0.1854743]
[1749488057980,0.45469894,107780.0,107770.0,0.99182878]
[1749488058187,0.07270144,107790.0,107780.0,0.1854571]
[1749488058385,0.45464,107790.0,107780.0,1.17696853]
[1749488058686,0.36224675,107800.0,107790.0,0.18544]
[1749488058888,0.36224675,107800.0,107790.0,0.96286922]
[1749488059285,0.36224675,107800.0,107790.0,1.06969718]
[1749488059482,0.36224675,107800.0,107790.0,1.0556465]
[1749488059678,0.3004228,107800.0,107790.0,0.85254162]
[1749488059882,0.3004228,107800.0,107790.0,1.08455233]
[1749488060082,0.2614228,107800.0,107790.0,1.08455233]
[1749488060279,0.7155828,107800.0,107790.0,1.08455233]
[1749488061090,0.72949592,107800.0,107790.0,1.11775233]
[1749488061392,0.73249592,107800.0,107790.0,1.11875233]
[1749488061791,0.7185828,107800.0,107790.0,1.11875233]
[1749488063088,0.5324,107800.0,107790.0,1.11875233]
[1749488063292,0.7178227,107800.0,107790.0,1.11875233]
[1749488063691,0.7178227,107800.0,107790.0,0.75795233]
[1749488063892,0.7178227,107800.0,107790.0,1.11875233]
[1749488064487,0.7178227,107800.0,107790.0,1.23421745]
[1749488064691,0.7178227,107800.0,107790.0,1.11875233]
[1749488065084,0.6417427,107800.0,107790.0,1.23421882]
[1749488065290,0.6417427,107800.0,107790.0,1.08969448]
[1749488065691,0.62668092,107800.0,107790.0,1.08969448]
[1749488066493,0.62668092,107800.0,107790.0,0.97422799]
[1749488066685,0.62668092,107800.0,107790.0,1.14626233]
[1749488066884,0.62668092,107800.0,107790.0,1.26209426]
[1749488067090,0.13436092,107800.0,107790.0,1.26209426]
[1749488067290,0.58712092,107800.0,107790.0,1.26209426]
[1749488067485,0.58712092,107800.0,107790.0,1.11756992]
[1749488068690,0.58712092,107800.0,107790.0,1.11754424]
[1749488069491,0.12835991,107810.0,107800.0,0.1854203]
[1749488069692,0.01435168,107810.0,107800.0,0.97301197]
[1749488069995,0.6377632,107810.0,107800.0,1.21030499]
[1749488070293,0.45236,107810.0,107800.0,1.09492049]
[1749488070693,0.45236,107810.0,107800.0,1.21027613]
[1749488071095,0.45536,107810.0,107800.0,1.21027613]
[1749488071497,0.003,107810.0,107800.0,1.06575179]
[1749488071894,0.003,107810.0,107800.0,1.09492049]
[1749488072101,0.003,107810.0,107800.0,1.3269312]
[1749488072392,0.003,107810.0,107800.0,1.38476129]
[1749488072593,0.003,107810.0,107800.0,1.39908204]
[1749488072795,0.003,107810.0,107800.0,1.53914694]
[1749488072994,0.003,107810.0,107800.0,1.63201768]
[1749488073195,0.003,107810.0,107800.0,1.42966325]
[1749488073395,0.00013894,107820.0,107810.0,0.1854033]
[1749488073596,0.00013894,107820.0,107810.0,1.095686]
[1749488074000,0.00013894,107820.0,107810.0,1.18843747]
[1749488074502,0.00013894,107820.0,107810.0,1.33242138]
[1749488074695,0.00213894,107820.0,107810.0,1.18843747]
[1749488075799,0.00213894,107820.0,107810.0,1.33239896]
[1749488076902,0.00213894,107820.0,107810.0,1.3323765]
[1749488077101,0.00213894,107820.0,107810.0,1.3323762]
[1749488077303,0.00213894,107820.0,107810.0,1.18843747]
[1749488077503,0.00213894,107820.0,107810.0,1.33234811]
[1749488077697,0.00213894,107820.0,107810.0,1.63875747]
[1749488077903,0.299129,107830.0,107820.0,0.1853861]
[1749488078103,0.299129,107830.0,107820.0,1.11643578]
[1749488078292,0.299129,107830.0,107820.0,1.11668401]
[1749488078497,0.299129,107830.0,107820.0,1.20943548]
[1749488078802,0.299129,107830.0,107820.0,1.06552494]
[1749488079304,0.11376,107830.0,107820.0,1.06552494]
[1749488079497,0.2991289,107830.0,107820.0,1.06552494]
[1749488079703,0.3001289,107830.0,107820.0,1.06552494]
[1749488079905,0.3001289,107830.0,107820.0,0.75471423]
[1749488080206,0.3772289,107830.0,107820.0,0.75471423]
[1749488082400,0.3772289,107830.0,107820.0,0.75431423]
[1749488082706,0.3772289,107830.0,107820.0,0.75471423]
[1749488083096,0.15496,107830.0,107820.0,0.98672494]
[1749488083299,0.7498488,107830.0,107820.0,1.06082494]
[1749488083496,0.56448,107830.0,107820.0,1.06082494]
[1749488084208,0.001,107830.0,107820.0,1.06082494]
[1749488084506,0.001,107830.0,107820.0,0.94569651]
[1749488084706,0.001,107830.0,107820.0,1.08960705]
[1749488085503,0.001,107830.0,107820.0,0.94569651]
[1749488085703,0.001,107830.0,107820.0,1.17483027]
[1749488086708,0.001,107830.0,107820.0,1.65737094]
[1749488086908,0.001,107830.0,107820.0,2.10649094]
[1749488087210,0.001,107830.0,107820.0,1.90486718]
[1749488087707,1.42371085,107840.0,107820.0,1.71948108]
[1749488088009,1.42371085,107840.0,107830.0,1.0987519]
[1749488088208,1.42371085,107840.0,107830.0,1.04138533]
[1749488088408,1.42371085,107840.0,107830.0,1.03745533]
[1749488088602,1.42371085,107840.0,107830.0,1.27412665]
[1749488089506,1.42371085,107840.0,107830.0,1.04211594]
[1749488089698,1.42371085,107840.0,107830.0,1.27412665]
[1749488090109,1.42471085,107840.0,107830.0,1.27412665]
[1749488090698,1.42471085,107840.0,107830.0,1.72528665]
[1749488094103,1.42471085,107840.0,107830.0,1.69484833]
[1749488094300,1.42471085,107840.0,107830.0,1.92685904]
[1749488094905,1.42471085,107840.0,107830.0,1.13989309]
[1749488094906,1.61006255,107840.0,107830.0,1.13989309]
[1749488095116,1.68986255,107840.0,107830.0,0.75469225]
[1749488095305,1.80358255,107840.0,107830.0,0.2787599]
[1749488095510,1.80358255,107840.0,107830.0,0.2783599]
[1749488095910,1.80358255,107840.0,107830.0,0.2787599]
[1749488096113,1.80358255,107840.0,107830.0,0.85268068]
[1749488096114,1.68986255,107840.0,107830.0,0.85268068]
[1749488096311,1.50451085,107840.0,107830.0,0.85268068]
[1749488096516,1.87507085,107840.0,107830.0,1.08471303]
[1749488096718,3.37507085,107840.0,107830.0,1.08471303]
[1749488096913,3.64072265,107840.0,107830.0,1.08471303]
[1749488097319,2.14072265,107840.0,107830.0,1.10461791]
[1749488098422,1.95537085,107840.0,107830.0,1.10461791]
[1749488098715,2.14072265,107840.0,107830.0,1.10461791]
[1749488098913,1.95537085,107840.0,107830.0,1.10461791]
[1749488099318,2.14072265,107840.0,107830.0,1.10461791]
[1749488100621,1.95537085,107840.0,107830.0,1.10461791]
[1749488100918,1.87403085,107840.0,107830.0,0.98948556]
[1749488101119,1.87403085,107840.0,107830.0,1.13341401]
[1749488101319,1.87403085,107840.0,107830.0,0.90038835]
[1749488101520,1.87403085,107840.0,107830.0,1.13341401]
[1749488102421,2.05938265,107840.0,107830.0,1.13341401]
[1749488102620,1.95543085,107840.0,107830.0,1.13366224]
[1749488103721,2.14078265,107840.0,107830.0,1.13366224]
[1749488104123,1.95543085,107840.0,107830.0,1.13366224]
[1749488105024,1.95543085,107840.0,107830.0,1.13771884]
[1749488106844,1.95543085,107840.0,107830.0,1.33929123]
[1749488107244,1.95543085,107840.0,107830.0,1.19536278]
[1749488108137,1.42471085,107840.0,107830.0,1.19536278]
[1749488108344,1.87231085,107840.0,107830.0,1.19536278]
[1749488108731,2.05766265,107840.0,107830.0,1.19536278]
[1749488109147,2.14066265,107840.0,107830.0,1.19536278]
[1749488109540,1.95531085,107840.0,107830.0,1.19536278]
[1749488109835,1.50771085,107840.0,107830.0,1.31086692]
[1749488110041,1.87187085,107840.0,107830.0,1.31086692]
[1749488110245,1.87187085,107840.0,107830.0,1.10929453]
[1749488110442,1.42471085,107840.0,107830.0,1.10929453]
[1749488110637,1.87183085,107840.0,107830.0,0.99379039]
[1749488110843,1.87183085,107840.0,107830.0,1.10930056]
[1749488111351,1.87183085,107840.0,107830.0,1.13817056]
[1749488111647,1.87183085,107840.0,107830.0,1.19536278]
[1749488112441,1.42471085,107840.0,107830.0,1.19536278]
[1749488112643,1.40965661,107840.0,107830.0,1.19536278]
[1749488113036,1.85637661,107840.0,107830.0,0.99379039]
[1749488113745,1.85637661,107840.0,107830.0,1.28244922]
[1749488115352,1.85637661,107840.0,107830.0,1.48469658]
[1749488115652,1.85637661,107840.0,107830.0,1.51220658]
[1749488115949,1.85637661,107840.0,107830.0,1.22354775]
[1749488117249,1.85637661,107840.0,107830.0,1.20353813]
[1749488120344,1.85637661,107840.0,107830.0,0.99052209]
[1749488120545,1.84552032,107840.0,107830.0,1.00129077]
[1749488120749,1.93082032,107840.0,107830.0,1.6507496]
[1749488120937,2.07347212,107840.0,107830.0,1.5730496]
[1749488121137,2.11617212,107840.0,107830.0,1.5338496]
[1749488121343,2.11617212,107840.0,107830.0,1.67834813]
[1749488121550,2.11617212,107840.0,107830.0,1.3892893]
[1749488121750,1.93082032,107840.0,107830.0,1.3896893]
[1749488122353,2.11617212,107840.0,107830.0,1.3896893]
[1749488122548,2.11517212,107840.0,107830.0,1.3896893]
[1749488122747,2.11717212,107840.0,107830.0,1.3896893]
[1749488122947,1.93182032,107840.0,107830.0,1.3896893]
[1749488124452,2.11717212,107840.0,107830.0,1.3896893]
[1749488124654,2.11717212,107840.0,107830.0,1.24519077]
[1749488124856,1.93182032,107840.0,107830.0,1.24519077]
[1749488125449,1.93182032,107840.0,107830.0,1.44748303]
[1749488126254,1.93182032,107840.0,107830.0,1.24519077]
[1749488126448,1.93182032,107840.0,107830.0,1.44758593]
[1749488126650,1.84368032,107840.0,107830.0,1.44758593]
[1749488126839,1.84380032,107840.0,107830.0,1.53078593]
[1749488127255,1.39980032,107840.0,107830.0,1.67005385]
[1749488127562,1.84380032,107840.0,107830.0,1.67005385]
[1749488128255,1.84180032,107840.0,107830.0,1.67105385]
[1749488129448,1.82674721,107840.0,107830.0,1.67105385]
[1749488129648,1.82674721,107840.0,107830.0,1.46865869]
[1749488129954,1.60963166,107840.0,107830.0,1.75731752]
[1749488131241,1.60963166,107840.0,107830.0,1.46865869]
[1749488132854,1.60963166,107840.0,107830.0,1.75731752]
[1749488133255,1.60963166,107840.0,107830.0,1.54430148]
[1749488133459,1.60963166,107840.0,107830.0,1.46865869]
[1749488133954,1.60963166,107840.0,107830.0,1.25564265]
[1749488134148,1.60963166,107840.0,107830.0,1.75731752]
[1749488135249,1.59877555,107840.0,107830.0,1.75731752]
[1749488139454,1.58372211,107840.0,107830.0,1.75731752]
[1749488139849,1.36660505,107840.0,107830.0,1.75731752]
[1749488140659,1.36660505,107840.0,107830.0,1.95974631]
[1749488140961,1.36408505,107840.0,107830.0,1.67108748]
[1749488141144,1.36408505,107840.0,107830.0,1.46865869]
[1749488141347,1.36408505,107840.0,107830.0,1.67108325]
[1749488142357,1.36408505,107840.0,107830.0,1.46865869]
[1749488145954,1.36408505,107840.0,107830.0,1.75731752]
[1749488146555,1.36408505,107840.0,107830.0,1.46865869]
[1749488146957,1.36408505,107840.0,107830.0,1.90953869]
[1749488147361,1.36408505,107840.0,107830.0,2.19819752]
[1749488148057,1.36408505,107840.0,107830.0,1.98518148]
[1749488148259,1.36408505,107840.0,107830.0,1.75731752]
[1749488148462,1.40258505,107840.0,107830.0,1.75731752]
[1749488148663,1.44288505,107840.0,107830.0,1.54430148]
[1749488148965,1.44288505,107840.0,107830.0,1.75731752]
[1749488149160,1.36340505,107840.0,107830.0,1.75731752]
[1749488149358,0.89793505,107840.0,107830.0,1.75731752]
[1749488149566,0.88288211,107840.0,107830.0,1.75731752]
[1749488150061,0.07279795,107850.0,107830.0,1.75731752]
[1749488150062,0.441,107850.0,107840.0,0.3243573]
[1749488150258,0.14924,107870.0,107850.0,0.1389927]
[1749488150464,0.41286992,107870.0,107860.0,0.9614202]
[1749488150657,0.85390992,107870.0,107860.0,1.10585289]
[1749488150857,0.85390992,107870.0,107860.0,1.10610112]
[1749488151166,0.85390992,107870.0,107860.0,1.0543769]
[1749488151553,0.11872822,107870.0,107860.0,1.34655537]
[1749488151763,0.52048822,107870.0,107860.0,1.42858849]
[1749488152063,0.52348822,107870.0,107860.0,1.4557769]
[1749488152560,0.70878842,107870.0,107860.0,1.4557769]
[1749488152754,1.46381796,107870.0,107860.0,0.29524346]
[1749488152958,1.46381796,107870.0,107860.0,0.43959711]
[1749488152959,1.46181796,107870.0,107860.0,0.43959711]
[1749488153167,1.46181796,107870.0,107860.0,0.1208567]